bitfinex-derivatives/quotes_BTCF0:USTF0_20241125
["timestamp","ask_amount","ask_price","bid_price","bid_amount"]
[1732560025185,0.31432669,95470.0,95453.0,0.052384]
[1732560025393,0.09518806,95463.0,95440.0,0.00096]
[1732560025599,0.052385,95451.0,95443.0,0.052389]
[1732560025892,0.0004,95450.0,95431.0,1.00196]
[1732560026098,0.052391,95441.0,95437.0,0.01464377]
[1732560026283,0.052391,95441.0,95431.0,0.052396]
[1732560026488,0.3608,95444.0,95431.0,0.052396]
[1732560026489,0.0004,95438.0,95431.0,0.052396]
[1732560026686,0.0004,95432.0,95431.0,0.052396]
[1732560027799,0.0004,95432.0,95431.0,0.009]
[1732560028097,0.31436,95431.0,95411.0,0.00157211]
[1732560028401,0.052806,95412.0,95411.0,0.00157211]
[1732560028700,0.0004,95412.0,95403.0,0.13197749]
[1732560028886,0.052408,95409.0,95403.0,0.13197749]
[1732560029084,0.0004,95404.0,95403.0,0.13197749]
[1732560029289,0.0004,95404.0,95397.0,0.3608]
[1732560029587,0.0004,95404.0,95396.0,0.00010731]
[1732560029588,0.052412,95403.0,95396.0,0.00010731]
[1732560029996,0.0004,95397.0,95396.0,0.05252231]
[1732560031297,0.0004,95397.0,95396.0,0.00010731]
[1732560031500,0.0004,95397.0,95396.0,0.00910731]
[1732560032200,0.0004,95397.0,95396.0,0.01610731]
[1732560032698,0.32088,95397.0,95396.0,0.01010731]
[1732560032892,0.32088,95397.0,95396.0,0.00110731]
[1732560033596,0.0064,95397.0,95396.0,0.00110731]
[1732560035902,0.05242,95387.0,95353.0,0.4846]
[1732560036108,0.052427,95376.0,95372.0,0.052428]
[1732560036301,0.0004,95375.0,95372.0,0.052428]
[1732560037590,0.0004,95375.0,95374.0,0.009]
[1732560037902,0.0004,95375.0,95367.0,0.01432115]
[1732560037903,0.052431,95368.0,95367.0,0.00010759]
[1732560038103,0.052431,95368.0,95341.0,0.1564]
[1732560038104,0.1564,95368.0,95351.0,0.37547483]
[1732560038400,0.052434,95362.0,95357.0,0.052436]
[1732560038597,0.1564,95368.0,95357.0,0.052436]
[1732560038807,0.052436,95359.0,95357.0,0.052436]
[1732560040602,0.3608,95362.0,95361.0,0.052434]
[1732560040995,0.3608,95362.0,95361.0,0.0004]
[1732560041200,0.727834,95362.0,95361.0,0.0004]
[1732560041499,0.727834,95362.0,95353.0,8.423e-05]
[1732560041500,0.052438,95355.0,95353.0,8.423e-05]
[1732560041708,0.208878,95354.0,95353.0,8.423e-05]
[1732560042904,0.208878,95354.0,95353.0,0.05252323]
[1732560043203,0.213878,95354.0,95353.0,0.05252323]
[1732560043499,0.213878,95354.0,95353.0,8.423e-05]
[1732560043698,0.217878,95354.0,95353.0,8.423e-05]
[1732560045803,0.16544,95354.0,95353.0,0.05252323]
[1732560046800,0.009,95354.0,95353.0,0.05252323]
[1732560047104,0.16544,95354.0,95353.0,0.05252323]
[1732560047405,0.16544,95354.0,95353.0,8.423e-05]
[1732560047406,0.578678,95354.0,95353.0,8.423e-05]
[1732560047605,0.052443,95345.0,95344.0,0.055044]
[1732560047808,0.052443,95345.0,95344.0,0.052444]
[1732560047998,0.052843,95345.0,95344.0,0.052444]
[1732560048305,0.0004,95345.0,95344.0,0.052444]
[1732560048802,0.0014,95345.0,95344.0,0.009]
[1732560049002,0.053843,95345.0,95344.0,0.009]
[1732560049396,0.053843,95345.0,95344.0,0.061444]
[1732560049802,0.054843,95345.0,95344.0,0.070444]
[1732560050606,0.054843,95345.0,95344.0,0.018]
[1732560050808,0.415643,95345.0,95344.0,0.018]
[1732560050998,0.415643,95345.0,95339.0,0.0026]
[1732560050999,0.052446,95340.0,95339.0,0.0026]
[1732560051204,0.052446,95340.0,95337.0,7.555e-05]
[1732560051205,0.052447,95338.0,95337.0,7.555e-05]
[1732560051611,0.367527,95338.0,95337.0,7.555e-05]
[1732560052512,0.367527,95338.0,95334.0,0.00157339]
[1732560052513,0.052449,95335.0,95334.0,0.00157339]
[1732560052707,0.052449,95335.0,95326.0,0.0026]
[1732560052708,0.052453,95327.0,95326.0,0.0026]
[1732560053004,0.052453,95327.0,95321.0,0.0026]
[1732560053005,0.052456,95322.0,95321.0,0.0026]
[1732560053308,0.052458,95320.0,95319.0,0.052458]
[1732560053810,0.052858,95320.0,95319.0,0.052458]
[1732560054001,0.052458,95319.0,95312.0,0.052461]
[1732560054198,0.052461,95313.0,95312.0,0.052461]
[1732560054404,0.15668,95313.0,95307.0,0.00270984]
[1732560054603,0.413264,95308.0,95307.0,0.00010984]
[1732560054808,0.413664,95308.0,95307.0,0.00010984]
[1732560055108,0.41378227,95308.0,95307.0,0.00010984]
[1732560055708,0.41378227,95308.0,95307.0,0.00510984]
[1732560056212,0.052466,95303.0,95302.0,0.0026]
[1732560056402,0.052467,95301.0,95300.0,0.1]
[1732560056806,0.052867,95301.0,95300.0,0.1]
[1732560057006,0.367667,95301.0,95300.0,0.1]
[1732560058605,0.38194092,95301.0,95300.0,0.1]
[1732560059006,0.38794092,95301.0,95300.0,0.1]
[1732560059311,0.38894092,95301.0,95300.0,0.108]
[1732560059901,0.39294092,95301.0,95300.0,0.1]
[1732560060301,0.39294092,95301.0,95300.0,0.152468]
[1732560060302,0.07814092,95301.0,95300.0,0.152468]
[1732560060506,0.23446092,95301.0,95300.0,0.1]
[1732560061107,0.07814092,95301.0,95300.0,0.1]
[1732560061310,0.23446092,95301.0,95300.0,0.1]
[1732560062709,0.07814092,95301.0,95300.0,0.1]
[1732560062909,0.23446092,95301.0,95300.0,0.1]
[1732560064109,0.05247,95296.0,95295.0,0.0026]
[1732560064311,0.052474,95289.0,95288.0,0.0026]
[1732560064517,0.052479,95281.0,95278.0,0.0026]
[1732560064821,0.052481,95276.0,95275.0,0.00157417]
[1732560065118,0.052486,95267.0,95266.0,0.055087]
[1732560065307,0.15672,95276.0,95266.0,0.055087]
[1732560065308,0.052485,95270.0,95267.0,0.052486]
[1732560065515,0.208845,95270.0,95269.0,0.052485]
[1732560065711,0.208845,95270.0,95269.0,0.052885]
[1732560065922,0.208845,95270.0,95269.0,0.06815359]
[1732560066124,0.052485,95270.0,95269.0,0.052885]
[1732560066421,0.3608,95273.0,95271.0,0.052484]
[1732560066621,0.15636,95272.0,95271.0,0.052484]
[1732560067014,0.208843,95272.0,95271.0,0.052484]
[1732560067214,0.001,95276.0,95268.0,0.3608]
[1732560067420,0.001,95276.0,95275.0,0.052482]
[1732560067722,0.15636,95293.0,95288.0,0.052475]
[1732560067920,0.38180624,95301.0,95288.0,0.413275]
[1732560068121,0.15636,95298.0,95288.0,0.413675]
[1732560068326,0.15636,95298.0,95288.0,0.42816852]
[1732560068825,0.005,95289.0,95288.0,0.42816852]
[1732560069024,0.3608,95301.0,95300.0,0.052468]
[1732560069223,0.00157468,95302.0,95301.0,0.052467]
[1732560069423,0.02100624,95317.0,95307.0,0.052464]
[1732560069615,0.00157395,95325.0,95307.0,0.052464]
[1732560069817,0.15636,95321.0,95307.0,0.052864]
[1732560070222,0.052458,95320.0,95307.0,0.052864]
[1732560070421,0.052458,95319.0,95307.0,0.052864]
[1732560070622,0.51716,95325.0,95307.0,0.052864]
[1732560070821,0.15636,95325.0,95307.0,0.052864]
[1732560071117,0.3608,95323.0,95307.0,0.052864]
[1732560071620,0.3608,95323.0,95307.0,0.055864]
[1732560071621,0.00111827,95308.0,95307.0,0.055864]
[1732560072124,0.00211827,95308.0,95307.0,0.0104]
[1732560072313,0.00211827,95308.0,95307.0,0.059864]
[1732560072314,0.00111827,95308.0,95307.0,0.059864]
[1732560072513,0.00211827,95308.0,95307.0,0.059864]
[1732560072717,0.00211827,95308.0,95307.0,0.090664]
[1732560073023,0.00111827,95308.0,95307.0,0.090664]
[1732560073223,0.00211827,95308.0,95307.0,0.090664]
[1732560074016,0.00111827,95308.0,95307.0,0.398424]
[1732560074428,0.00111827,95308.0,95307.0,0.64766307]
[1732560074926,0.208774,95326.0,95325.0,0.052454]
[1732560075515,0.052454,95326.0,95325.0,0.052854]
[1732560075822,9.03e-05,95326.0,95325.0,0.052854]
[1732560076225,0.0040903,95326.0,95325.0,0.052854]
[1732560076418,0.052442,95347.0,95346.0,0.052443]
[1732560076618,0.05401497,95350.0,95349.0,0.052441]
[1732560076825,0.05401497,95350.0,95349.0,0.413241]
[1732560077046,0.05401497,95350.0,95349.0,0.413641]
[1732560077047,0.00157397,95350.0,95349.0,0.413641]
[1732560077424,0.00166119,95350.0,95349.0,0.413641]
[1732560077822,0.00666119,95350.0,95349.0,0.414641]
[1732560078621,0.01066119,95350.0,95349.0,0.414641]
[1732560078926,0.06310219,95350.0,95349.0,0.414641]
[1732560079727,0.06310219,95350.0,95349.0,0.0014]
[1732560079728,0.37774219,95350.0,95349.0,0.0014]
[1732560079925,0.53406219,95350.0,95349.0,0.0014]
[1732560080226,0.052446,95340.0,95339.0,0.0026]
[1732560080422,0.052452,95330.0,95329.0,0.0026]
[1732560080615,0.052454,95326.0,95325.0,0.00013567]
[1732560081023,0.052854,95326.0,95325.0,0.00013567]
[1732560082133,0.052458,95318.0,95317.0,0.00417375]
[1732560082323,0.052458,95318.0,95317.0,0.00157375]
[1732560082324,0.413258,95318.0,95317.0,0.00157375]
[1732560082519,0.728378,95318.0,95317.0,0.00157375]
[1732560083227,0.728378,95318.0,95317.0,0.052459]
[1732560083228,0.3612,95318.0,95317.0,0.052459]
[1732560083618,0.0004,95318.0,95317.0,0.052459]
[1732560084428,0.052858,95318.0,95317.0,0.052459]
[1732560084930,0.060858,95318.0,95317.0,0.052459]
[1732560085630,0.0084,95318.0,95311.0,0.0026]
[1732560085827,0.0084,95318.0,95310.0,0.3608]
[1732560085828,0.052459,95317.0,95316.0,0.052459]
[1732560087724,0.057459,95317.0,95316.0,0.052459]
[1732560087934,0.060459,95317.0,95316.0,0.052459]
[1732560088419,0.008,95317.0,95316.0,0.052459]
[1732560093034,0.008,95317.0,95310.0,0.3608]
[1732560093235,0.052465,95305.0,95302.0,0.052467]
[1732560093431,0.052466,95304.0,95302.0,0.052467]
[1732560093628,0.0004,95305.0,95294.0,0.01451903]
[1732560093830,0.052466,95304.0,95300.0,0.052468]
[1732560094027,0.052466,95304.0,95294.0,0.01451903]
[1732560094028,0.052466,95304.0,95301.0,0.052467]
[1732560094628,0.052466,95304.0,95297.0,0.052469]
[1732560094837,0.052466,95304.0,95303.0,0.00411591]
[1732560095035,0.053466,95304.0,95303.0,0.00611591]
[1732560095336,0.0653208,95304.0,95303.0,0.00611591]
[1732560096728,0.0663208,95304.0,95303.0,0.00611591]
[1732560097342,0.0703208,95304.0,95303.0,0.00411591]
[1732560097528,0.0723208,95304.0,95303.0,0.00011591]
[1732560098428,0.0723208,95304.0,95294.0,0.0026]
[1732560098429,0.052471,95295.0,95294.0,0.0026]
[1732560098745,0.052471,95295.0,95287.0,0.00157394]
[1732560098746,0.052474,95289.0,95288.0,0.0026]
[1732560098943,0.052475,95288.0,95287.0,0.00157394]
[1732560099139,0.052475,95288.0,95287.0,0.05404894]
[1732560099346,0.00052583,95288.0,95287.0,0.05404894]
[1732560099847,0.052477,95284.0,95283.0,0.00010141]
[1732560100034,0.052477,95284.0,95275.0,0.0026]
[1732560100035,0.052481,95276.0,95275.0,0.0026]
[1732560100235,0.052485,95270.0,95269.0,0.0026]
[1732560100435,0.052485,95270.0,95252.0,1.55502884]
[1732560100436,0.3612,95276.0,95259.0,0.0026]
[1732560100643,0.052488,95265.0,95262.0,0.052489]
[1732560100940,0.052488,95265.0,95264.0,0.00012195]
[1732560101145,0.51788,95284.0,95264.0,0.00012195]
[1732560101146,0.052485,95271.0,95264.0,0.00012195]
[1732560101346,0.052485,95271.0,95269.0,0.004]
[1732560101347,0.001,95270.0,95269.0,0.004]
[1732560101536,0.001,95270.0,95269.0,0.3648]
[1732560101736,0.001,95270.0,95269.0,0.004]
[1732560101737,0.053485,95270.0,95269.0,0.004]
[1732560102643,0.053485,95270.0,95269.0,0.052485]
[1732560102942,0.052485,95270.0,95269.0,0.052485]
[1732560103541,0.053485,95270.0,95269.0,0.056485]
[1732560103743,0.053485,95270.0,95269.0,0.058485]
[1732560103744,0.054485,95270.0,95269.0,0.058485]
[1732560104244,0.054485,95270.0,95269.0,0.006]
[1732560104451,0.054485,95270.0,95269.0,0.058485]
[1732560104850,0.054485,95270.0,95269.0,0.006]
[1732560109340,0.415285,95270.0,95269.0,0.006]
[1732560109541,0.052491,95258.0,95257.0,0.0026]
[1732560109742,0.052496,95250.0,95249.0,0.00157476]
[1732560110239,0.052493,95255.0,95249.0,0.00157476]
[1732560110442,0.052495,95252.0,95249.0,0.00157476]
[1732560110649,0.15596,95254.0,95249.0,0.00157476]
[1732560110843,0.0004,95258.0,95257.0,0.052492]
[1732560111243,0.0004,95258.0,95257.0,0.052892]
[1732560112140,0.0014,95258.0,95257.0,0.052892]
[1732560113252,0.0024,95258.0,95257.0,0.052892]
[1732560117957,0.054891,95258.0,95257.0,0.052892]
[1732560118155,0.0024,95258.0,95257.0,0.052892]
[1732560118849,0.054891,95258.0,95257.0,0.052892]
[1732560119455,0.054891,95258.0,95257.0,0.0004]
[1732560122348,0.054891,95258.0,95248.0,8.89e-05]
[1732560122553,0.052496,95249.0,95248.0,8.89e-05]
[1732560122749,0.209296,95249.0,95248.0,8.89e-05]
[1732560123365,0.052502,95239.0,95238.0,0.0026]
[1732560123658,0.052506,95232.0,95231.0,0.3608]
[1732560124163,0.053306,95232.0,95231.0,0.3608]
[1732560124359,0.05340226,95232.0,95231.0,0.3608]
[1732560124964,0.05340226,95232.0,95231.0,0.413306]
[1732560125162,0.00189626,95232.0,95231.0,0.413306]
[1732560125660,0.3608,95250.0,95249.0,0.052496]
[1732560126158,0.413296,95250.0,95249.0,0.052896]
[1732560126572,0.41342983,95250.0,95249.0,0.052896]
[1732560126957,0.41442983,95250.0,95249.0,0.0004]
[1732560127167,0.41442983,95250.0,95249.0,0.052896]
[1732560127364,0.41542983,95250.0,95249.0,0.0014]
[1732560128362,0.05462983,95250.0,95249.0,0.0014]
[1732560129160,0.36958983,95250.0,95249.0,0.0014]
[1732560129357,0.43338983,95250.0,95249.0,0.0014]
[1732560129573,0.052501,95240.0,95239.0,0.0026]
[1732560129766,0.052501,95240.0,95231.0,0.413306]
[1732560129767,0.052504,95235.0,95231.0,0.413306]
[1732560130065,0.156,95240.0,95231.0,0.413306]
[1732560130066,0.1564,95240.0,95231.0,0.413306]
[1732560130254,0.1564,95240.0,95231.0,0.3608]
[1732560130569,0.052503,95237.0,95231.0,0.3608]
[1732560130767,0.0004,95240.0,95231.0,0.3608]
[1732560130960,0.0004,95240.0,95239.0,0.414702]
[1732560130961,0.0014,95240.0,95239.0,0.414702]
[1732560131361,0.053901,95240.0,95239.0,0.0014]
[1732560131560,0.052901,95240.0,95239.0,0.0004]
[1732560131769,0.0004,95240.0,95239.0,0.052902]
[1732560132071,0.0004,95240.0,95239.0,0.413702]
[1732560132971,0.0014,95240.0,95239.0,0.413702]
[1732560133471,0.0024,95240.0,95239.0,0.413702]
[1732560134271,0.054901,95240.0,95239.0,0.0004]
[1732560134461,0.415701,95240.0,95229.0,0.1873147]
[1732560134666,0.415701,95240.0,95223.0,0.0026]
[1732560134667,0.05251,95224.0,95223.0,0.0026]
[1732560134869,0.05251,95224.0,95219.0,0.00157532]
[1732560134870,0.052512,95220.0,95219.0,0.00157532]
[1732560135261,0.053312,95220.0,95219.0,0.00157532]
[1732560135462,0.052513,95218.0,95217.0,0.00012873]
[1732560135671,0.052519,95208.0,95207.0,0.0026]
[1732560135972,0.052519,95208.0,95194.0,0.01181083]
[1732560135973,0.052521,95204.0,95196.0,0.0026]
[1732560136267,0.053323,95201.0,95200.0,0.152523]
[1732560136467,0.053323,95201.0,95200.0,0.1]
[1732560138066,0.054323,95201.0,95200.0,0.1]
[1732560139061,0.055323,95201.0,95200.0,0.1]
[1732560142274,0.054323,95201.0,95200.0,0.1]
[1732560142471,0.055323,95201.0,95200.0,0.1]
[1732560143570,0.054323,95201.0,95200.0,0.1]
[1732560143872,0.055323,95201.0,95200.0,0.1]
[1732560146275,0.0028,95201.0,95200.0,0.152523]
[1732560146476,0.0028,95201.0,95200.0,0.1]
[1732560146676,0.055323,95201.0,95200.0,0.1]
[1732560147268,0.055323,95201.0,95200.0,0.192523]
[1732560147474,0.055323,95201.0,95200.0,0.14]
[1732560149377,0.0554252,95201.0,95200.0,0.14]
[1732560151978,0.0554252,95201.0,95170.0,0.1873147]
[1732560151979,0.3705452,95201.0,95170.0,0.1873147]
[1732560152180,0.3608,95173.0,95171.0,0.01157896]
[1732560152484,0.3608,95173.0,95160.0,0.1873147]
[1732560152485,0.3616,95173.0,95160.0,0.1873147]
[1732560152684,0.14315105,95170.0,95162.0,0.052544]
[1732560152884,0.052543,95164.0,95158.0,0.2707607]
[1732560153191,0.052544,95163.0,95161.0,8.817e-05]
[1732560155684,0.053544,95163.0,95161.0,8.817e-05]
[1732560155890,0.054544,95163.0,95161.0,8.817e-05]
[1732560156090,0.0536534,95163.0,95161.0,8.817e-05]
[1732560157391,0.002,95163.0,95146.0,0.00157659]
[1732560157583,0.052552,95149.0,95147.0,0.0322]
[1732560157885,0.3608,95148.0,95147.0,0.0322]
[1732560159184,0.414352,95148.0,95147.0,0.0322]
[1732560159393,0.3628,95148.0,95147.0,0.0322]
[1732560164988,0.3128,95148.0,95147.0,0.0322]
[1732560167580,0.3128,95148.0,95147.0,0.084752]
[1732560167786,0.3128,95148.0,95147.0,0.0322]
[1732560171187,0.365352,95148.0,95147.0,0.0322]
[1732560171389,0.365352,95148.0,95147.0,0.084752]
[1732560172000,0.3128,95148.0,95147.0,0.084752]
[1732560172789,0.3128,95148.0,95147.0,0.0322]
[1732560172992,0.365352,95148.0,95147.0,0.0322]
[1732560173191,0.726152,95148.0,95147.0,0.0322]
[1732560173590,0.052555,95142.0,95141.0,0.064]
[1732560173792,0.052556,95141.0,95140.0,7.675e-05]
[1732560175594,0.053556,95141.0,95140.0,0.05263275]
[1732560175797,0.053556,95141.0,95133.0,0.2188147]
[1732560176001,0.3608,95134.0,95133.0,0.08406]
[1732560176195,0.2038078,95134.0,95133.0,0.08406]
[1732560176397,0.2038078,95134.0,95133.0,0.41110665]
[1732560176594,0.0008,95134.0,95133.0,0.41110665]
[1732560176791,0.0008,95134.0,95133.0,0.41123778]
[1732560177594,0.0008,95134.0,95133.0,0.66047685]
[1732560177788,0.002,95141.0,95133.0,0.66047685]
[1732560177789,0.002,95141.0,95133.0,0.41123778]
[1732560178094,0.3608,95152.0,95139.0,0.3608]
[1732560178095,0.05255,95151.0,95139.0,0.3608]
[1732560178400,0.05255,95151.0,95150.0,0.052951]
[1732560179089,0.05355,95151.0,95150.0,0.052951]
[1732560179600,0.3608,95152.0,95150.0,0.052951]
[1732560179601,0.3608,95152.0,95150.0,0.0004]
[1732560179794,0.3608,95152.0,95151.0,0.05255]
[1732560179996,0.3608,95152.0,95151.0,0.05295]
[1732560180898,0.41335,95152.0,95151.0,0.05295]
[1732560181201,0.41435,95152.0,95151.0,0.05295]
[1732560181396,0.41535,95152.0,95151.0,0.05495]
[1732560181591,0.3628,95152.0,95151.0,0.05495]
[1732560181797,0.3628,95152.0,95151.0,0.05695]
[1732560182499,0.3628,95152.0,95151.0,0.30618907]
[1732560183114,0.3628,95152.0,95151.0,0.05695]
[1732560183997,0.41535,95152.0,95151.0,0.05695]
[1732560184206,0.3628,95152.0,95151.0,0.05695]
[1732560184409,0.002,95152.0,95151.0,0.37223]
[1732560185305,0.15758427,95168.0,95151.0,1.40103991]
[1732560185306,0.00157662,95168.0,95151.0,1.40103991]
[1732560185493,0.00157662,95168.0,95167.0,0.052541]
[1732560185697,0.00157662,95168.0,95167.0,0.052941]
[1732560186511,0.00257662,95168.0,95167.0,0.052941]
[1732560186901,0.00357662,95168.0,95167.0,0.052941]
[1732560187300,0.052534,95183.0,95182.0,0.052533]
[1732560187702,0.052534,95180.0,95179.0,0.24129991]
[1732560187893,0.3608,95184.0,95183.0,0.052533]
[1732560188098,0.12493993,95189.0,95185.0,0.052531]
[1732560188299,0.3608,95193.0,95185.0,0.052531]
[1732560188599,0.413328,95193.0,95192.0,0.052928]
[1732560188806,0.3608,95193.0,95192.0,0.052928]
[1732560189001,0.413327,95193.0,95192.0,0.052928]
[1732560189207,0.413327,95193.0,95192.0,0.0004]
[1732560189600,0.413327,95193.0,95192.0,0.052928]
[1732560189895,0.418327,95193.0,95192.0,0.052928]
[1732560190094,0.421327,95193.0,95192.0,0.052928]
[1732560190809,0.421327,95193.0,95192.0,0.0004]
[1732560191106,0.008,95193.0,95192.0,0.052928]
[1732560191308,0.16435679,95193.0,95192.0,0.052928]
[1732560191809,0.008,95193.0,95192.0,0.052928]
[1732560192009,0.060527,95193.0,95192.0,0.052928]
[1732560192595,0.008,95193.0,95192.0,0.052928]
[1732560193206,0.008,95193.0,95187.0,0.3608]
[1732560193396,0.13297466,95193.0,95188.0,0.0309]
[1732560193603,0.052529,95189.0,95188.0,0.052529]
[1732560193801,0.052531,95185.0,95184.0,0.052531]
[1732560194106,0.0004,95185.0,95183.0,0.3608]
[1732560194313,0.0004,95185.0,95184.0,0.052532]
[1732560195106,0.0937048,95186.0,95184.0,0.009]
[1732560195307,0.052531,95186.0,95185.0,0.052531]
[1732560195501,0.052531,95186.0,95185.0,0.052931]
[1732560195906,0.12496856,95190.0,95189.0,0.052529]
[1732560196308,0.052529,95190.0,95189.0,0.052929]
[1732560196600,0.12496856,95191.0,95190.0,0.052529]
[1732560196802,0.052527,95194.0,95193.0,0.052526]
[1732560197219,0.052527,95194.0,95193.0,0.052926]
[1732560198008,0.058527,95194.0,95193.0,0.053926]
[1732560198709,0.006,95194.0,95193.0,0.053926]
[1732560199111,0.058526,95194.0,95193.0,0.053926]
[1732560199814,0.009,95194.0,95193.0,0.053926]
[1732560204513,0.061526,95194.0,95193.0,0.0014]
[1732560204709,0.21788279,95194.0,95193.0,0.0014]
[1732560204916,0.061526,95194.0,95193.0,0.053927]
[1732560205305,0.009,95194.0,95193.0,0.053927]
[1732560205509,0.16505521,95194.0,95193.0,0.053927]
[1732560205708,0.009,95194.0,95193.0,0.053927]
[1732560206105,0.16505521,95194.0,95193.0,0.053927]
[1732560206512,0.009,95194.0,95193.0,0.053927]
[1732560206712,0.13389237,95194.0,95193.0,0.053927]
[1732560207121,0.009,95194.0,95193.0,0.053927]
[1732560209107,0.16505521,95194.0,95193.0,0.053927]
[1732560209423,0.009,95194.0,95193.0,0.053927]
[1732560210515,0.16529137,95194.0,95193.0,0.053927]
[1732560210910,0.009,95194.0,95193.0,0.053927]
[1732560217318,0.009,95194.0,95193.0,0.24290197]
[1732560217715,0.009,95194.0,95193.0,0.053927]
[1732560219225,0.061526,95194.0,95193.0,0.053927]
[1732560220320,0.009,95194.0,95193.0,0.053927]
[1732560221729,0.376686,95194.0,95193.0,0.0014]
[1732560222029,0.376686,95194.0,95164.0,0.0026]
[1732560222030,0.052535,95179.0,95178.0,0.052535]
[1732560222329,0.27224352,95179.0,95178.0,0.052535]
[1732560223032,0.052535,95179.0,95178.0,0.052535]
[1732560223330,0.052535,95179.0,95178.0,0.055535]
[1732560223331,0.053535,95179.0,95178.0,0.055535]
[1732560223523,0.054535,95179.0,95178.0,0.064535]
[1732560226025,0.24268663,95179.0,95178.0,0.064535]
[1732560226227,0.24266023,95179.0,95178.0,0.064535]
[1732560226428,0.054535,95179.0,95178.0,0.012]
[1732560226629,0.054535,95179.0,95150.0,0.09553309]
[1732560226630,0.052544,95163.0,95150.0,0.15552]
[1732560226833,0.052544,95163.0,95143.0,0.413354]
[1732560226834,0.17794584,95163.0,95158.0,0.01179795]
[1732560227132,0.053344,95163.0,95158.0,0.01179795]
[1732560227428,0.12613024,95163.0,95162.0,0.41492015]
[1732560227729,0.0008,95163.0,95162.0,0.41492015]
[1732560227927,0.0018,95163.0,95162.0,0.57344015]
[1732560228121,0.0028,95163.0,95162.0,0.58244015]
[1732560228323,0.12533024,95177.0,95170.0,0.052539]
[1732560228538,0.052533,95183.0,95182.0,0.052532]
[1732560228923,0.052533,95183.0,95182.0,0.052932]
[1732560229427,0.052533,95183.0,95182.0,0.052933]
[1732560229634,0.17786022,95183.0,95182.0,0.052933]
[1732560229931,0.052533,95183.0,95182.0,0.413733]
[1732560230125,0.17785922,95184.0,95183.0,0.052533]
[1732560230530,0.052532,95184.0,95183.0,0.0004]
[1732560230831,0.17785101,95184.0,95183.0,0.0004]
[1732560231135,0.052532,95184.0,95183.0,0.0004]
[1732560231325,0.059532,95184.0,95183.0,0.052933]
[1732560231533,0.063532,95184.0,95183.0,0.052933]
[1732560232826,0.063532,95184.0,95176.0,0.01141547]
[1732560233025,0.052538,95178.0,95177.0,0.052535]
[1732560233222,0.48607745,95182.0,95172.0,0.37239047]
[1732560233528,0.17781545,95173.0,95172.0,0.3608]
[1732560233829,0.052538,95173.0,95172.0,0.3608]
[1732560234331,0.052542,95167.0,95166.0,0.06390598]
[1732560234630,0.052542,95167.0,95166.0,0.052542]
[1732560235234,0.052942,95167.0,95166.0,0.052542]
[1732560235929,0.17818304,95167.0,95166.0,0.052542]
[1732560236122,0.052942,95167.0,95166.0,0.06425959]
[1732560236925,0.053942,95167.0,95166.0,0.06525959]
[1732560237125,0.053942,95167.0,95166.0,0.001]
[1732560237532,0.17918304,95167.0,95166.0,0.001]
[1732560237730,0.053942,95167.0,95166.0,0.053542]
[1732560237928,0.053942,95167.0,95166.0,0.057542]
[1732560237929,0.054942,95167.0,95166.0,0.057542]
[1732560238539,0.18009229,95167.0,95166.0,0.057542]
[1732560238723,0.18009229,95167.0,95166.0,0.005]
[1732560238929,0.054942,95167.0,95166.0,0.005]
[1732560239731,0.210222,95167.0,95166.0,0.005]
[1732560241432,0.39821284,95167.0,95166.0,0.005]
[1732560242339,0.210222,95167.0,95166.0,0.005]
[1732560246638,0.210222,95167.0,95146.0,0.3608]
[1732560246639,0.052546,95159.0,95146.0,0.3608]
[1732560246938,0.052546,95159.0,95140.0,0.00157668]
[1732560246939,0.052556,95141.0,95140.0,0.00157668]
[1732560247126,0.568676,95141.0,95133.0,0.00013113]
[1732560247328,0.05256,95134.0,95133.0,0.00013113]
[1732560247528,0.05296,95134.0,95133.0,0.00013113]
[1732560249337,0.2093391,95134.0,95133.0,0.00013113]
[1732560249542,0.06556535,95134.0,95133.0,0.00013113]
[1732560249737,0.19158746,95134.0,95133.0,0.00013113]
[1732560250136,0.06656535,95134.0,95133.0,0.00013113]
[1732560254944,0.06656535,95134.0,95114.0,0.0323]
[1732560254945,0.05257,95115.0,95114.0,0.0323]
[1732560255147,0.41337,95115.0,95114.0,0.0323]
[1732560255933,0.3612,95115.0,95114.0,0.0323]
[1732560256235,0.3612,95115.0,95114.0,0.084871]
[1732560256438,0.3622,95115.0,95114.0,0.084871]
[1732560256833,0.3632,95115.0,95114.0,0.084871]
[1732560258135,0.41577,95115.0,95114.0,0.084871]
[1732560258337,0.3632,95115.0,95114.0,0.084871]
[1732560260436,0.0024,95115.0,95114.0,0.084871]
[1732560260637,0.3608,95126.0,95125.0,0.052565]
[1732560261137,0.413364,95126.0,95125.0,0.052565]
[1732560261339,0.51596,95126.0,95114.0,0.0323]
[1732560261654,0.05297,95115.0,95114.0,0.0323]
[1732560262945,0.052571,95114.0,95113.0,0.052571]
[1732560263141,0.052572,95112.0,95111.0,0.052572]
[1732560263550,0.052972,95112.0,95111.0,0.052572]
[1732560264745,0.0004,95112.0,95107.0,0.00012583]
[1732560264949,0.413374,95108.0,95107.0,0.05269983]
[1732560265145,0.413774,95108.0,95107.0,0.00012583]
[1732560266146,0.729339,95108.0,95091.0,0.00157717]
[1732560266339,0.413378,95101.0,95091.0,0.00157717]
[1732560266543,0.568978,95101.0,95091.0,0.00157717]
[1732560266953,0.568978,95101.0,95087.0,0.01163006]
[1732560267145,0.568978,95101.0,95093.0,0.052582]
[1732560267344,0.413778,95101.0,95093.0,0.052582]
[1732560267655,0.414778,95101.0,95087.0,0.01163006]
[1732560267846,0.414778,95101.0,95098.0,0.052579]
[1732560268347,0.414778,95101.0,95087.0,0.01163006]
[1732560268546,0.415778,95101.0,95100.0,0.03541576]